bitfinex/quotes_BTCUSD_20240613
["timestamp","ask_amount","ask_price","bid_price","bid_amount"]
[1718295096633,0.020416,66694.0,66693.0,0.001]
[1718295097176,0.020416,66694.0,66693.0,0.00472363]
[1718295103667,0.009416,66694.0,66693.0,0.00372363]
[1718295104079,0.16473593,66694.0,66693.0,0.00472363]
[1718295104315,0.020416,66694.0,66693.0,0.00372363]
[1718295104479,0.009416,66694.0,66686.0,0.323]
[1718295104681,0.009416,66694.0,66687.0,0.2448]
[1718295104904,0.009416,66694.0,66692.0,0.2]
[1718295105605,0.009416,66694.0,66693.0,0.00372363]
[1718295105947,0.020416,66694.0,66693.0,0.00472363]
[1718295106149,0.009416,66694.0,66693.0,0.00372363]
[1718295106714,0.019416,66694.0,66693.0,0.00372363]
[1718295107037,0.009416,66694.0,66693.0,0.00372363]
[1718295107387,0.019416,66694.0,66693.0,0.001]
[1718295107592,0.019416,66694.0,66693.0,0.00422586]
[1718295107794,0.009416,66694.0,66693.0,0.00322586]
[1718295108033,0.009416,66694.0,66689.0,0.519896]
[1718295108170,0.009416,66694.0,66693.0,0.15316586]
[1718295108378,0.009416,66694.0,66693.0,0.14994]
[1718295108580,0.009416,66694.0,66693.0,1.41806586]
[1718295108794,0.00061735,66725.0,66712.0,0.149898]
[1718295109016,0.00061735,66725.0,66700.0,0.2]
[1718295109017,0.05,66748.0,66710.0,0.2]
[1718295109238,0.27724506,66780.0,66710.0,0.2]
[1718295109239,1.8e-07,66780.0,66779.0,0.05]
[1718295109442,0.27467727,66783.0,66777.0,0.229752]
[1718295109443,1.8e-07,66783.0,66782.0,0.23984]
[1718295109593,0.01506993,66803.0,66782.0,0.23984]
[1718295109594,0.01506993,66803.0,66795.0,0.229711]
[1718295109793,0.01506993,66803.0,66795.0,0.32431993]
[1718295110003,0.52239346,66796.0,66795.0,0.39047631]
[1718295110255,0.52239346,66796.0,66795.0,0.22754204]
[1718295110256,0.01649346,66796.0,66795.0,0.22754204]
[1718295110514,0.01649346,66796.0,66795.0,0.00322211]
[1718295110515,0.12975088,66796.0,66795.0,0.00322211]
[1718295110744,0.1,66788.0,66772.0,0.44795979]
[1718295110983,0.1963,66777.0,66773.0,0.31059501]
[1718295111202,0.05,66774.0,66773.0,0.0030502]
[1718295111434,0.2463,66774.0,66773.0,0.0030502]
[1718295111643,0.496058,66774.0,66773.0,0.0030502]
[1718295111860,0.15,66773.0,66772.0,0.015]
[1718295112062,0.22215996,66773.0,66772.0,0.015]
[1718295112259,0.05,66756.0,66749.0,0.43295979]
[1718295112510,0.05,66756.0,66745.0,0.2]
[1718295112511,0.05,66751.0,66750.0,0.31067722]
[1718295112723,0.29981,66751.0,66750.0,0.31388844]
[1718295112849,0.91148765,66751.0,66750.0,0.31388844]
[1718295113052,0.91148765,66751.0,66750.0,0.00321122]
[1718295113053,0.93448765,66751.0,66750.0,0.00321122]
[1718295113252,0.93448765,66751.0,66719.0,0.2]
[1718295113253,0.05,66725.0,66719.0,0.2]
[1718295113455,0.1,66736.0,66721.0,0.41634323]
[1718295113456,0.05,66724.0,66721.0,0.41634323]
[1718295113749,0.05,66723.0,66722.0,0.31079534]
[1718295113971,0.05,66723.0,66707.0,0.009416]
[1718295113972,0.05,66708.0,66707.0,0.009416]
[1718295114188,0.19431993,66708.0,66707.0,0.009416]
[1718295114460,0.22874242,66708.0,66707.0,0.009416]
[1718295114670,0.49981993,66708.0,66707.0,0.009416]
[1718295114904,0.52281993,66708.0,66707.0,0.009416]
[1718295115115,0.65783165,66708.0,66707.0,0.009416]
[1718295115332,0.52281993,66708.0,66707.0,0.009416]
[1718295115771,0.95092238,66708.0,66702.0,0.00018047]
[1718295115973,0.05,66681.0,66680.0,0.43295979]
[1718295116390,0.05,66675.0,66674.0,0.059975]
[1718295116629,0.149953,66688.0,66674.0,0.059975]
[1718295116861,0.14431993,66688.0,66674.0,0.059975]
[1718295117067,0.14431993,66687.0,66671.0,0.02]
[1718295117266,0.14431993,66687.0,66669.0,0.02]
[1718295117481,0.29427593,66687.0,66671.0,0.02]
[1718295117924,0.149969,66681.0,66669.0,0.02]
[1718295118335,0.14431993,66687.0,66669.0,0.02]
[1718295118554,0.14431993,66687.0,66668.0,0.07215996]
[1718295118555,0.149962,66684.0,66675.0,0.07215996]
[1718295118756,0.01,66687.0,66675.0,0.07215996]
[1718295118958,0.14431993,66686.0,66675.0,0.07215996]
[1718295119383,0.14431993,66686.0,66675.0,0.09215996]
[1718295119586,0.14431993,66686.0,66676.0,0.00284076]
[1718295120880,0.14431993,66686.0,66675.0,0.07215996]
[1718295121087,0.14431993,66686.0,66677.0,0.00284076]
[1718295121293,0.14431993,66686.0,66675.0,0.09315996]
[1718295121494,0.15131993,66686.0,66678.0,0.00284076]
[1718295121718,0.14431993,66686.0,66675.0,0.09215996]
[1718295122199,0.15231993,66686.0,66676.0,0.00384076]
[1718295122413,0.5647,66708.0,66687.0,0.02]
[1718295122625,0.149933,66697.0,66691.0,0.07215996]
[1718295122867,0.14431993,66697.0,66691.0,0.07215996]
[1718295123090,0.149943,66692.0,66691.0,0.07215996]
[1718295123319,0.14431993,66692.0,66682.0,0.07215996]
[1718295123559,0.1,66697.0,66676.0,0.53295979]
[1718295123560,0.14431993,66691.0,66676.0,0.53295979]
[1718295123795,0.14431993,66691.0,66683.0,0.07215996]
[1718295124028,0.149951,66689.0,66683.0,0.07215996]
[1718295124249,0.1,66705.0,66690.0,0.07215996]
[1718295124478,0.14431993,66704.0,66690.0,0.07215996]
[1718295124703,0.149922,66701.0,66690.0,0.07215996]
[1718295124932,0.5647,66708.0,66697.0,0.07215996]
[1718295125165,0.149925,66701.0,66697.0,0.07215996]
[1718295125399,0.149924,66701.0,66697.0,0.07215996]
[1718295125631,0.1,66719.0,66698.0,0.149928]
[1718295125632,0.149891,66716.0,66698.0,0.149928]
[1718295125884,0.14431993,66715.0,66705.0,0.07215996]
[1718295126156,0.1,66728.0,66713.0,0.07215996]
[1718295126392,0.14431993,66727.0,66713.0,0.07215996]
[1718295126861,0.299741,66725.0,66713.0,0.07215996]
[1718295127139,0.1,66721.0,66701.0,0.04465125]
[1718295127397,0.149925,66700.0,66697.0,0.07315996]
[1718295127616,0.6777,66729.0,66707.0,0.02]
[1718295127889,0.6777,66729.0,66711.0,0.07215996]
[1718295128097,0.1,66725.0,66711.0,0.07215996]
[1718295128319,0.01,66715.0,66705.0,0.101]
[1718295128520,0.149925,66700.0,66698.0,0.43295979]
[1718295128742,0.149925,66700.0,66698.0,0.1]
[1718295129407,0.149915,66705.0,66698.0,0.1]
[1718295129845,0.14431993,66714.0,66704.0,0.07215996]
[1718295130293,0.1,66723.0,66704.0,0.22207396]
[1718295130513,0.14431993,66722.0,66704.0,0.07215996]
[1718295130721,0.14431993,66722.0,66708.0,0.02]
[1718295130952,0.14431993,66722.0,66704.0,0.07815598]
[1718295130953,0.149875,66722.0,66711.0,0.07215996]
[1718295131157,0.1,66734.0,66718.0,0.07215996]
[1718295131363,0.14431993,66733.0,66722.0,0.0075]
[1718295131570,0.149867,66726.0,66722.0,0.0075]
[1718295131781,0.24431993,66733.0,66722.0,0.0075]
[1718295131977,0.1,66732.0,66722.0,0.0075]
[1718295132180,0.6276,66738.0,66722.0,0.0075]
[1718295132181,0.149873,66723.0,66722.0,0.0075]
[1718295132486,0.149844,66737.0,66723.0,0.02]
[1718295132712,0.5776,66738.0,66724.0,0.02]
[1718295132713,0.01,66733.0,66724.0,0.02]
[1718295133119,0.14431993,66736.0,66725.0,0.00272732]
[1718295133302,0.01,66732.0,66725.0,0.00272732]
[1718295133727,0.01,66732.0,66723.0,0.07215996]
[1718295133933,0.159855,66732.0,66723.0,0.07215996]
[1718295134144,0.159855,66732.0,66722.0,0.0085]
[1718295134145,0.01,66732.0,66722.0,0.0085]
[1718295134353,0.01,66732.0,66724.0,0.00272732]
[1718295134567,0.149864,66728.0,66722.0,0.0085]
[1718295134733,0.14431993,66736.0,66722.0,0.0075]
[1718295134734,0.14987,66725.0,66722.0,0.0075]
[1718295135139,0.14987,66725.0,66724.0,0.001]
[1718295135343,0.14431993,66736.0,66722.0,0.0075]
[1718295135344,0.149873,66723.0,66722.0,0.0075]
[1718295135753,0.01,66728.0,66722.0,0.0085]
[1718295136151,0.149864,66727.0,66722.0,0.0075]
[1718295136321,0.14431993,66736.0,66722.0,0.0075]
[1718295136516,0.149873,66723.0,66722.0,0.0075]
[1718295137131,0.69393893,66723.0,66722.0,0.0075]
[1718295137382,1.31418493,66723.0,66722.0,0.0075]
[1718295137747,1.01443893,66723.0,66722.0,0.0075]
[1718295137963,0.97569293,66723.0,66722.0,0.0075]
[1718295138185,1.41975886,66723.0,66722.0,0.0075]
[1718295138387,1.71950486,66723.0,66722.0,0.0075]
[1718295138601,0.97569293,66723.0,66722.0,0.0075]
[1718295139013,1.28943893,66723.0,66722.0,0.0075]
[1718295139219,1.57518493,66723.0,66722.0,0.0075]
[1718295139429,1.59818493,66723.0,66722.0,0.0075]
[1718295139643,1.61218493,66723.0,66722.0,0.0075]
[1718295139884,0.149929,66698.0,66697.0,0.07215996]
[1718295140055,0.149936,66695.0,66694.0,0.43295979]
[1718295140272,0.149936,66695.0,66686.0,0.7849]
[1718295140273,0.299837,66703.0,66697.0,0.00251604]
[1718295140492,0.299837,66703.0,66688.0,0.02]
[1718295140493,0.149936,66695.0,66688.0,0.02]
[1718295140739,0.149949,66689.0,66688.0,0.02]
[1718295140953,0.14431993,66702.0,66688.0,0.02]
[1718295141139,0.14431993,66702.0,66692.0,0.02]
[1718295141296,0.14431993,66702.0,66690.0,0.07215996]
[1718295141499,0.149945,66691.0,66690.0,0.07215996]
[1718295141744,0.14431993,66702.0,66690.0,0.07215996]
[1718295141940,0.14431993,66702.0,66686.0,0.7849]
[1718295141941,0.149943,66692.0,66691.0,0.12439959]
[1718295142202,0.149943,66692.0,66691.0,0.22439959]
[1718295142614,0.149935,66696.0,66691.0,0.22439959]
[1718295142833,0.1,66699.0,66692.0,0.1244016]
[1718295143012,0.3033,66701.0,66692.0,0.1244016]
[1718295143013,0.14994,66693.0,66692.0,0.1244016]
[1718295143234,0.14994,66693.0,66686.0,0.2]
[1718295143235,0.001,66692.0,66686.0,0.2]
[1718295143380,0.150945,66692.0,66687.0,0.12440742]
[1718295143580,0.149945,66691.0,66688.0,0.12440742]
[1718295143761,0.149945,66691.0,66689.0,0.12440742]
[1718295143961,0.14994,66693.0,66690.0,0.19656842]
[1718295144246,0.149937,66695.0,66691.0,0.12440846]
[1718295144452,0.299788,66714.0,66693.0,0.01]
[1718295144453,0.05,66710.0,66693.0,0.01]
[1718295144657,0.149921,66702.0,66694.0,0.12440846]
[1718295144809,0.149921,66702.0,66695.0,0.12440846]
[1718295145009,0.149915,66705.0,66698.0,0.07215996]
[1718295145233,0.29423493,66705.0,66699.0,0.12440846]
[1718295145440,0.3079,66712.0,66700.0,0.12440846]
[1718295145771,0.05,66718.0,66705.0,0.07215996]
[1718295145772,0.15,66718.0,66705.0,0.07215996]
[1718295145916,0.15,66718.0,66701.0,0.12440846]
[1718295145917,0.05,66715.0,66701.0,0.12440846]
[1718295146118,0.149918,66703.0,66702.0,0.12439357]
[1718295146337,0.013,66705.0,66702.0,0.12439357]
[1718295146540,0.013,66705.0,66698.0,0.07215996]
[1718295146753,0.24431993,66714.0,66699.0,0.12439477]
[1718295146754,0.14431993,66714.0,66699.0,0.12439477]
[1718295146952,0.14431993,66714.0,66700.0,0.22439477]
[1718295147125,0.149916,66704.0,66700.0,0.12439477]
[1718295147327,0.14431993,66714.0,66701.0,0.12439477]
[1718295147545,0.014,66718.0,66707.0,0.07215996]
[1718295147726,0.299778,66716.0,66708.0,0.12439477]
[1718295147927,0.14431993,66717.0,66709.0,0.1243775]
[1718295148163,0.149894,66714.0,66707.0,0.07215996]
[1718295148377,0.14431993,66717.0,66708.0,0.12438326]
[1718295148590,0.14431993,66717.0,66709.0,0.12438326]
[1718295148798,0.14431993,66717.0,66710.0,0.12438326]
[1718295148975,0.149897,66713.0,66711.0,0.12438326]
[1718295149171,0.149897,66713.0,66712.0,0.12438326]
[1718295149778,0.89379893,66713.0,66712.0,0.12438326]
[1718295150041,0.99379893,66713.0,66712.0,0.12438326]
[1718295150194,1.04497905,66713.0,66712.0,0.12438326]
[1718295150407,0.149925,66700.0,66697.0,0.01799692]
[1718295150609,0.149927,66699.0,66698.0,0.12439008]
[1718295150811,0.59959,66699.0,66698.0,0.22439008]
[1718295151111,0.59959,66699.0,66698.0,0.39431908]
[1718295151520,0.59959,66699.0,66698.0,0.76747573]
[1718295152577,0.59959,66699.0,66698.0,0.61754673]
[1718295152860,0.59959,66699.0,66698.0,0.55535782]
[1718295152998,0.60059,66699.0,66698.0,0.55735782]
[1718295153207,0.59959,66699.0,66698.0,0.55535782]
[1718295153524,0.59959,66699.0,66698.0,0.7052714]
[1718295153774,0.60059,66699.0,66698.0,0.7072714]
[1718295154973,0.59959,66699.0,66698.0,0.7052714]
[1718295155398,0.60059,66699.0,66698.0,0.7062714]
[1718295155584,0.60059,66699.0,66698.0,0.39530366]
[1718295155786,0.59959,66699.0,66698.0,0.70526856]
[1718295156013,0.59959,66699.0,66698.0,0.70626856]
[1718295156375,0.59959,66699.0,66698.0,1.45930649]
[1718295156581,0.59959,66699.0,66698.0,2.34666549]
[1718295156946,0.00093501,66722.0,66721.0,0.02]
[1718295157172,0.00093501,66722.0,66721.0,0.14435203]
[1718295157394,0.00093501,66722.0,66721.0,0.24435203]
[1718295157596,0.00093501,66722.0,66721.0,0.22435203]
[1718295157836,0.02690607,66757.0,66734.0,0.599388]
[1718295158048,0.149816,66749.0,66745.0,0.2]
[1718295158257,0.5816,66760.0,66747.0,0.07215996]
[1718295158258,0.299588,66759.0,66747.0,0.07215996]
[1718295158456,0.5816,66760.0,66746.0,0.1]
[1718295158457,0.299591,66758.0,66746.0,0.1]
[1718295158766,0.5816,66760.0,66746.0,0.1]
[1718295158972,0.14431993,66757.0,66746.0,0.1]
[1718295159185,0.14431993,66759.0,66747.0,0.07215996]
[1718295159403,0.001,66749.0,66745.0,0.001]
[1718295159600,0.14431993,66759.0,66739.0,0.12]
[1718295159601,0.14431993,66759.0,66747.0,0.07215996]
[1718295159901,0.009416,66761.0,66759.0,0.149791]
[1718295160101,0.005,66758.0,66754.0,0.07215996]
[1718295160328,0.005,66758.0,66754.0,0.1]
[1718295160855,0.149801,66755.0,66754.0,0.1]
[1718295161517,0.009416,66761.0,66749.0,0.1]
[1718295161687,0.15373593,66761.0,66749.0,0.1]
[1718295161889,0.149812,66750.0,66749.0,0.1]
[1718295162137,0.149812,66750.0,66742.0,0.1]
[1718295162138,0.149828,66743.0,66742.0,0.1]
[1718295162345,0.149839,66738.0,66733.0,0.3031]
[1718295162548,0.149842,66737.0,66732.0,0.2]
[1718295162753,0.149842,66737.0,66733.0,0.07215996]
[1718295162967,0.149842,66737.0,66726.0,0.11675815]
[1718295162968,0.149853,66732.0,66729.0,0.0123839]
[1718295163383,0.149853,66732.0,66726.0,0.07215996]
[1718295163586,0.149853,66732.0,66731.0,0.2]
[1718295163965,0.149853,66732.0,66726.0,0.08484624]
[1718295163966,0.1,66742.0,66726.0,0.01268628]
[1718295164177,0.14431993,66741.0,66721.0,0.22]
[1718295164502,0.149875,66722.0,66721.0,0.2]
[1718295165049,0.29968,66738.0,66721.0,0.22]
[1718295165269,0.29968,66738.0,66727.0,0.07215996]
[1718295165270,0.14986,66729.0,66727.0,0.07215996]
[1718295165468,0.149862,66728.0,66727.0,0.07215996]
[1718295165845,0.29968,66738.0,66727.0,0.07215996]
[1718295165846,0.14984,66738.0,66727.0,0.07215996]
[1718295165953,0.399641,66747.0,66727.0,0.07215996]
[1718295166155,0.299672,66740.0,66727.0,0.07215996]
[1718295166405,0.416,66735.0,66722.0,0.1]
[1718295166619,0.14431993,66734.0,66726.0,0.07215996]
[1718295167038,0.149864,66727.0,66726.0,0.07215996]
[1718295167584,0.14988,66720.0,66717.0,0.2]
[1718295167825,0.14988,66720.0,66711.0,0.07215996]
[1718295168026,0.399707,66732.0,66715.0,0.2]
[1718295168228,0.14431993,66731.0,66715.0,0.2]
[1718295168432,0.299716,66730.0,66715.0,0.2]
[1718295168656,0.14431993,66729.0,66717.0,0.02]
[1718295168863,0.14985,66734.0,66726.0,0.07215996]
[1718295169071,0.2552,66751.0,66726.0,0.07215996]
[1718295169072,0.1,66739.0,66726.0,0.07215996]
[1718295169293,0.149864,66727.0,66726.0,0.07215996]
[1718295171001,0.299635,66748.0,66726.0,0.07215996]
[1718295171002,0.3299,66743.0,66727.0,0.02]
[1718295171234,0.3299,66743.0,66726.0,0.09215996]
[1718295171235,0.14985,66734.0,66726.0,0.09215996]
[1718295171451,0.149851,66733.0,66726.0,0.09215996]
[1718295171704,0.149849,66734.0,66726.0,0.09215996]
[1718295172038,0.24431993,66742.0,66726.0,0.07215996]
[1718295172251,0.149853,66732.0,66726.0,0.07215996]
[1718295172418,0.149862,66728.0,66726.0,0.07215996]
[1718295172622,0.299686,66737.0,66726.0,0.07215996]
[1718295172831,0.149864,66727.0,66726.0,0.07215996]
[1718295173037,0.1,66750.0,66733.0,0.2]
[1718295173250,0.149845,66736.0,66734.0,0.17215996]
[1718295173452,0.149846,66735.0,66734.0,0.17215996]
[1718295173930,0.449538,66735.0,66734.0,0.1]
[1718295174135,0.149846,66735.0,66734.0,0.1]
[1718295174333,0.299653,66744.0,66727.0,0.02]
[1718295174478,0.44394993,66749.0,66727.0,0.02]
[1718295174479,0.14431993,66743.0,66733.0,0.07215996]
[1718295175324,0.1429488,66743.0,66733.0,0.07215996]
[1718295175589,0.149846,66736.0,66733.0,0.07215996]
[1718295175750,0.149842,66737.0,66733.0,0.07215996]
[1718295175988,0.1479488,66743.0,66733.0,0.07215996]
[1718295176203,0.1479488,66743.0,66727.0,0.12]
[1718295176204,0.1479488,66743.0,66727.0,0.1]
[1718295176407,0.149852,66733.0,66726.0,0.17215996]
[1718295176582,0.149852,66733.0,66728.0,0.01]
[1718295176786,0.149846,66736.0,66728.0,0.02]
[1718295176967,0.3093,66752.0,66735.0,0.07215996]
[1718295177186,0.3093,66752.0,66736.0,0.149842]
[1718295177187,0.29413393,66750.0,66736.0,0.149842]
[1718295177359,0.459108,66752.0,66742.0,0.07215996]
[1718295177561,0.149823,66746.0,66742.0,0.07215996]
[1718295177804,0.14431993,66751.0,66737.0,0.02]
[1718295177805,0.149826,66744.0,66737.0,0.02]
[1718295178009,0.149822,66746.0,66737.0,0.02]
[1718295178218,0.29412993,66751.0,66741.0,0.02]
[1718295178421,0.14982,66747.0,66740.0,0.02]
[1718295178637,0.14431993,66751.0,66736.0,0.12]
[1718295179041,0.14431993,66751.0,66737.0,0.02]
[1718295179268,0.149823,66746.0,66737.0,0.02]
[1718295179473,0.14431993,66751.0,66739.0,0.02]
[1718295179683,0.14431993,66751.0,66737.0,0.02]
[1718295180095,0.299628,66750.0,66734.0,0.1]
[1718295180322,0.14431993,66749.0,66733.0,0.19215996]
[1718295180529,0.14431993,66749.0,66736.0,0.02]
[1718295180734,0.299728,66727.0,66726.0,0.01788071]
[1718295180937,0.299728,66727.0,66722.0,0.0668601]
[1718295180938,0.2654,66741.0,66723.0,0.43295979]
[1718295181137,0.2654,66741.0,66729.0,0.02]
[1718295181361,0.14431993,66740.0,66727.0,0.2]
[1718295181533,0.149862,66728.0,66721.0,0.319]
[1718295181737,0.149875,66722.0,66721.0,0.07215996]
[1718295182160,0.149858,66730.0,66725.0,0.02]
[1718295182416,0.14431993,66740.0,66729.0,0.02]
[1718295182861,0.149857,66730.0,66729.0,0.02]
[1718295183104,0.14431993,66740.0,66729.0,0.02]
[1718295183105,0.149842,66737.0,66729.0,0.02]
[1718295183292,0.299682,66738.0,66729.0,0.02]
[1718295183510,0.149851,66733.0,66728.0,0.17215996]
[1718295183713,0.149825,66745.0,66732.0,0.149851]
[1718295183903,0.26669683,66749.0,66738.0,0.07215996]
[1718295183904,0.2569,66749.0,66738.0,0.07215996]
[1718295184157,0.14431993,66748.0,66741.0,0.02]
[1718295184322,0.14431993,66748.0,66738.0,0.07215996]
[1718295184524,0.149831,66742.0,66738.0,0.07215996]
[1718295185103,0.149844,66736.0,66735.0,0.1]
[1718295185535,0.149844,66736.0,66723.0,0.2435]
[1718295185536,0.149852,66733.0,66728.0,0.39215996]
[1718295185844,0.14431993,66741.0,66728.0,0.39215996]
[1718295186283,0.14431993,66741.0,66732.0,0.02]
[1718295186498,0.14431993,66741.0,66733.0,0.02]
[1718295186499,0.149848,66734.0,66733.0,0.02]
[1718295186717,0.149848,66734.0,66728.0,0.37215996]
[1718295186718,0.00093501,66735.0,66730.0,0.02]
[1718295186921,0.00093501,66735.0,66733.0,0.02]
[1718295187054,0.00093501,66735.0,66732.0,0.02]
[1718295187264,0.00093501,66735.0,66731.0,0.02]
[1718295187265,0.149852,66733.0,66731.0,0.02]
[1718295187474,0.00093501,66735.0,66731.0,0.02]
[1718295187672,0.149852,66733.0,66731.0,0.02]
[1718295187903,0.149852,66733.0,66732.0,0.02]
[1718295188101,0.00093501,66735.0,66728.0,0.37215996]
[1718295188102,0.00093501,66735.0,66733.0,0.02]
[1718295188305,0.149848,66734.0,66733.0,0.02]
[1718295188504,0.00093501,66735.0,66728.0,0.37215996]
[1718295188505,0.14985,66733.0,66732.0,0.02]
[1718295188714,0.149853,66732.0,66731.0,0.02]
[1718295188913,0.149859,66729.0,66728.0,0.3]
[1718295189309,0.14431993,66732.0,66728.0,0.3]
[1718295189515,0.149859,66729.0,66728.0,0.3]
[1718295189726,0.449578,66729.0,66728.0,0.3]
[1718295189934,0.149859,66729.0,66728.0,0.3]
[1718295190187,0.449578,66729.0,66728.0,0.3]
[1718295190383,0.149859,66729.0,66728.0,0.3]
[1718295192131,0.07215996,66729.0,66728.0,0.3]
[1718295192368,0.07215996,66729.0,66726.0,0.00085]
[1718295192369,0.149864,66727.0,66726.0,0.00085]
[1718295192565,0.84932,66727.0,66726.0,0.00085]
[1718295192731,1.049048,66727.0,66726.0,0.00085]
[1718295192957,1.09374567,66727.0,66726.0,0.00085]
[1718295193157,1.072048,66727.0,66726.0,0.00085]
[1718295193401,1.46068786,66727.0,66726.0,0.00085]
[1718295193937,1.37468786,66727.0,66726.0,0.00085]
[1718295194311,1.46068786,66727.0,66726.0,0.00085]
[1718295194533,0.158,66722.0,66705.0,0.07215996]
[1718295194697,0.149918,66703.0,66702.0,0.43295979]
[1718295195093,0.149918,66703.0,66701.0,0.2]
[1718295195094,0.14992,66702.0,66701.0,0.2]
[1718295196092,0.29423993,66702.0,66701.0,0.3]
[1718295196297,0.14431993,66702.0,66701.0,0.3]
[1718295196518,0.008,66702.0,66701.0,0.3]
[1718295196981,0.008,66702.0,66701.0,0.32]
[1718295197193,0.008,66702.0,66701.0,0.469922]
[1718295197450,0.008,66702.0,66701.0,0.3668601]
[1718295197906,0.008,66702.0,66701.0,0.32]
[1718295198348,0.008,66702.0,66701.0,0.3]
[1718295198599,0.008,66702.0,66701.0,0.32]
[1718295199037,0.008,66702.0,66701.0,0.3]
[1718295199262,0.008,66702.0,66701.0,0.32]
[1718295199601,0.008,66702.0,66701.0,0.3]
[1718295199973,0.15792,66702.0,66701.0,0.3]
[1718295200147,0.30223993,66702.0,66701.0,0.3]
[1718295200781,0.15231993,66702.0,66701.0,0.3]
[1718295200995,0.15231993,66702.0,66701.0,0.32]
[1718295200996,0.008,66702.0,66701.0,0.32]
[1718295202176,0.008,66702.0,66701.0,0.3]
[1718295202599,0.008,66702.0,66701.0,0.32]
[1718295203014,0.1499,66711.0,66705.0,0.02]
[1718295203232,0.14431993,66710.0,66707.0,0.07215996]
[1718295203429,0.14431993,66710.0,66708.0,0.02]
[1718295203722,0.14431993,66710.0,66707.0,0.07215996]
[1718295204502,0.29422293,66710.0,66707.0,0.07215996]
[1718295204703,0.30022293,66710.0,66707.0,0.07215996]
[1718295204875,0.14431993,66710.0,66707.0,0.07215996]
[1718295205147,0.149907,66708.0,66707.0,0.07215996]
[1718295205566,0.29422193,66710.0,66707.0,0.07215996]
[1718295205819,0.33783476,66718.0,66702.0,0.1]
[1718295205820,0.149918,66703.0,66702.0,0.1]
[1718295205960,0.149931,66697.0,66696.0,0.02]
[1718295206166,0.14993,66698.0,66696.0,0.02]
[1718295206331,0.14993,66698.0,66697.0,0.07215996]
[1718295206732,0.14431993,66703.0,66697.0,0.07215996]
[1718295206733,0.149925,66700.0,66697.0,0.07215996]
[1718295206989,0.149929,66698.0,66697.0,0.07215996]
[1718295207155,0.14431993,66699.0,66697.0,0.07215996]
[1718295207916,0.003,66698.0,66694.0,0.1]
[1718295208213,0.003,66698.0,66693.0,0.1]
[1718295208214,0.15905192,66697.0,66685.0,0.02]
[1718295208416,0.14431993,66697.0,66685.0,0.02]
[1718295208561,0.299881,66694.0,66685.0,0.02]
[1718295208761,0.5809,66700.0,66685.0,0.02]
[1718295208762,0.74410993,66693.0,66685.0,0.02]
[1718295208969,0.149949,66689.0,66685.0,0.02]
[1718295209203,0.59979,66688.0,66684.0,0.0099669]
[1718295209411,0.59979,66688.0,66682.0,0.07215996]
[1718295209412,0.149961,66684.0,66682.0,0.07215996]
[1718295209661,0.59979,66683.0,66682.0,0.07215996]
[1718295210065,0.749753,66683.0,66682.0,0.17215996]
[1718295210247,0.59979,66683.0,66682.0,0.17215996]
[1718295210654,0.59979,66683.0,66682.0,0.19215996]
[1718295210861,0.60379,66683.0,66682.0,0.17215996]
[1718295211061,0.60379,66683.0,66682.0,0.18200385]
[1718295211263,0.59979,66683.0,66682.0,0.18200385]
[1718295211476,0.749753,66683.0,66682.0,0.18200385]
[1718295212104,0.59979,66683.0,66682.0,0.18200385]
[1718295212303,0.59979,66683.0,66682.0,0.19215996]
[1718295212536,0.59979,66683.0,66682.0,0.17215996]
[1718295212745,0.60379,66683.0,66682.0,0.17215996]
[1718295213245,0.60379,66683.0,66682.0,0.19215996]
[1718295213449,0.60379,66683.0,66682.0,1.21105596]
[1718295213667,0.59979,66683.0,66682.0,1.96523789]
[1718295213875,0.59979,66683.0,66682.0,1.58427034]
[1718295214098,0.59979,66683.0,66682.0,1.89418101]
[1718295214308,0.59979,66683.0,66682.0,1.88418101]
[1718295214495,0.59979,66683.0,66682.0,2.18411201]
[1718295214743,0.59979,66683.0,66682.0,1.89418101]
[1718295214958,0.59979,66683.0,66682.0,2.12780183]
[1718295215204,0.59676618,66683.0,66682.0,2.52773283]
[1718295215407,0.55546618,66683.0,66682.0,2.68313194]
[1718295215601,0.43295979,66714.0,66713.0,0.169895]
[1718295215714,0.43295979,66714.0,66713.0,0.02]
[1718295215935,0.43295979,66714.0,66713.0,0.149895]
[1718295215936,0.57939967,66714.0,66713.0,0.149895]
[1718295216148,0.57939967,66714.0,66713.0,0.249895]
[1718295216562,0.57939967,66714.0,66713.0,0.1]
[1718295217002,0.59239967,66714.0,66713.0,0.1]
[1718295217231,0.59239967,66714.0,66708.0,0.07215996]
[1718295217684,0.59239967,66714.0,66713.0,0.149895]
[1718295217882,0.59239967,66714.0,66713.0,0.249895]
[1718295218194,0.59239967,66714.0,66713.0,0.1]
[1718295219047,0.59239967,66714.0,66708.0,0.07215996]
[1718295219248,0.57939967,66714.0,66708.0,0.07215996]
[1718295219448,0.57939967,66714.0,66710.0,0.149902]
[1718295219656,0.58639967,66714.0,66711.0,0.1]
[1718295219868,0.57939967,66714.0,66711.0,0.249899]
[1718295220011,0.57939967,66714.0,66712.0,0.149897]
[1718295220217,0.59239967,66714.0,66713.0,0.101]
[1718295220604,0.8736126,66714.0,66713.0,0.1]
[1718295221047,0.8846126,66714.0,66713.0,0.1]
[1718295221253,0.8846126,66714.0,66711.0,0.001]
[1718295221570,0.14431993,66713.0,66712.0,0.07215996]
[1718295221770,0.14431993,66713.0,66711.0,0.001]
[1718295221771,0.737198,66712.0,66711.0,0.001]
[1718295221969,0.7237196,66712.0,66711.0,0.001]
[1718295222191,0.8736176,66712.0,66711.0,0.001]
[1718295222401,1.1734136,66712.0,66711.0,0.001]
[1718295222599,1.4732096,66712.0,66711.0,0.001]
[1718295223162,0.14992,66702.0,66701.0,0.00085]
[1718295223393,1.1734806,66702.0,66701.0,0.00085]